fUSD/lending_fUSD_20260616
["ID","MTS","AMOUNT","RATE_DAILY","PERIOD"]
[425176535,1781561205000,2000.0,0.00030091,120]
[425176533,1781561205000,2000.0,0.00030077,120]
[425176537,1781561206000,432.17,0.00030136,120]
[425176538,1781561228000,-662.14357056,7.265e-05,2]
[425176539,1781561249000,432.17,0.00030136,120]
[425176541,1781561250000,432.17,0.00030136,120]
[425176540,1781561250000,-12588.02909742,7.265e-05,2]
[425176542,1781561251000,151.33,5.701e-05,2]
[425176543,1781561252000,151.33,7.127e-05,2]
[425176544,1781561270000,173.06,6.911e-05,2]
[425176548,1781561348000,-500.64331299,7.263e-05,2]
[425176545,1781561348000,-150.0,7.262e-05,2]
[425176546,1781561348000,-500.0,7.263e-05,2]
[425176547,1781561348000,-217.68128374,7.263e-05,2]
[425176549,1781561348000,-500.0,7.263e-05,2]
[425176552,1781561348000,-500.0,7.263e-05,2]
[425176551,1781561348000,-500.0,7.263e-05,2]
[425176556,1781561348000,-358.62997247,7.263e-05,2]
[425176553,1781561348000,-500.08988138,7.263e-05,2]
[425176554,1781561348000,-498.15747542,7.263e-05,2]
[425176555,1781561348000,-500.0,7.263e-05,2]
[425176550,1781561348000,-500.0,7.263e-05,2]
[425176557,1781561354000,-141.37002753,7.263e-05,2]
[425176559,1781561354000,-500.0,7.263e-05,2]
[425176558,1781561354000,-349.17121032,7.263e-05,2]
[425176560,1781561354000,-500.0,7.263e-05,2]
[425176562,1781561354000,-500.0,7.263e-05,2]
[425176563,1781561354000,-269.45530453,7.263e-05,2]
[425176564,1781561354000,-230.54469547,7.263e-05,2]
[425176565,1781561354000,-478.10782172,7.263e-05,2]
[425176561,1781561354000,-500.0,7.263e-05,2]
[425176566,1781561378000,-21.89217828,7.263e-05,2]
[425176568,1781561378000,-500.0,7.263e-05,2]
[425176567,1781561378000,-500.0,7.263e-05,2]
[425176569,1781561378000,-500.0,7.263e-05,2]
[425176571,1781561378000,-500.0,7.263e-05,2]
[425176570,1781561378000,-224.58643148,7.263e-05,2]
[425176575,1781561379000,-458.85970069,7.263e-05,2]
[425176574,1781561379000,-417.10908619,7.263e-05,2]
[425176573,1781561379000,-82.89091381,7.263e-05,2]
[425176572,1781561379000,-500.0,7.263e-05,2]
[425176578,1781561404000,-500.0,7.263e-05,2]
[425176576,1781561404000,-41.14029931,7.263e-05,2]
[425176579,1781561404000,-500.0,7.263e-05,2]
[425176577,1781561404000,-500.0,7.263e-05,2]
[425176580,1781561404000,-500.0,7.263e-05,2]
[425176582,1781561404000,-362.33599047,7.263e-05,2]
[425176583,1781561404000,-137.66400953,7.263e-05,2]
[425176584,1781561404000,-419.02712024,7.263e-05,2]
[425176581,1781561404000,-500.0,7.263e-05,2]
[425176594,1781561434000,-80.97287976,7.263e-05,2]
[425176609,1781561436000,-500.0,7.263e-05,2]
[425176611,1781561436000,-500.0,7.263e-05,2]
[425176610,1781561436000,-500.0,7.263e-05,2]
[425176608,1781561436000,-500.0,7.263e-05,2]
[425176615,1781561436000,-500.0,7.263e-05,2]
[425176613,1781561436000,-500.0,7.263e-05,2]
[425176614,1781561436000,-500.0,7.263e-05,2]
[425176616,1781561436000,-500.0,7.263e-05,2]
[425176607,1781561436000,-286.04618527,7.263e-05,2]
[425176612,1781561436000,-500.0,7.263e-05,2]
[425176606,1781561436000,-213.95381473,7.263e-05,2]
[425176598,1781561436000,-500.0,7.263e-05,2]
[425176604,1781561436000,-500.0,7.263e-05,2]
[425176603,1781561436000,-500.0,7.263e-05,2]
[425176602,1781561436000,-500.0,7.263e-05,2]
[425176601,1781561436000,-500.0,7.263e-05,2]
[425176600,1781561436000,-500.0,7.263e-05,2]
[425176599,1781561436000,-500.0,7.263e-05,2]
[425176597,1781561436000,-500.0,7.263e-05,2]
[425176595,1781561436000,-500.0,7.263e-05,2]
[425176596,1781561436000,-500.0,7.263e-05,2]
[425176605,1781561436000,-500.0,7.263e-05,2]
[425176621,1781561436000,-500.0,7.263e-05,2]
[425176632,1781561436000,-758.05815486,7.263e-05,2]
[425176624,1781561436000,-758.05815486,7.263e-05,2]
[425176640,1781561436000,-758.05815486,7.263e-05,2]
[425176622,1781561436000,-500.0,7.263e-05,2]
[425176641,1781561436000,-758.05815486,7.263e-05,2]
[425176639,1781561436000,-758.05815486,7.263e-05,2]
[425176637,1781561436000,-758.05815486,7.263e-05,2]
[425176638,1781561436000,-758.05815486,7.263e-05,2]
[425176633,1781561436000,-758.05815486,7.263e-05,2]
[425176634,1781561436000,-758.05815486,7.263e-05,2]
[425176636,1781561436000,-758.05815486,7.263e-05,2]
[425176630,1781561436000,-758.05815486,7.263e-05,2]
[425176635,1781561436000,-758.05815486,7.263e-05,2]
[425176629,1781561436000,-758.05815486,7.263e-05,2]
[425176628,1781561436000,-758.05815486,7.263e-05,2]
[425176627,1781561436000,-758.05815486,7.263e-05,2]
[425176625,1781561436000,-758.05815486,7.263e-05,2]
[425176626,1781561436000,-758.05815486,7.263e-05,2]
[425176623,1781561436000,-500.0,7.263e-05,2]
[425176619,1781561436000,-500.0,7.263e-05,2]
[425176620,1781561436000,-500.0,7.263e-05,2]
[425176631,1781561436000,-758.05815486,7.263e-05,2]
[425176617,1781561436000,-500.0,7.263e-05,2]
[425176618,1781561436000,-612.61696861,7.263e-05,2]
[425176682,1781561437000,-9999.99,7.945e-05,2]
[425176676,1781561437000,-150.0,7.799e-05,2]
[425176677,1781561437000,-500.0,7.836e-05,2]
[425176680,1781561437000,-150.0,7.874e-05,2]
[425176674,1781561437000,-150.0,7.649e-05,2]
[425176675,1781561437000,-150.0,7.724e-05,2]
[425176678,1781561437000,-150.99,7.851e-05,2]
[425176673,1781561437000,-500.0,7.616e-05,2]
[425176681,1781561437000,-287.064318,7.945e-05,2]
[425176672,1781561437000,-150.0,7.574e-05,2]
[425176679,1781561437000,-299.99,7.851e-05,2]
[425176683,1781561437000,-150.0,7.949e-05,2]
[425176695,1781561437000,-160.0,8.186e-05,2]
[425176686,1781561437000,-193.0,7.992e-05,2]
[425176688,1781561437000,-170.20819984,8.005e-05,2]
[425176685,1781561437000,-250.0,7.99e-05,2]
[425176687,1781561437000,-250.0,7.992e-05,2]
[425176692,1781561437000,-150.0,8.024e-05,2]
[425176691,1781561437000,-151.0,8.008e-05,2]
[425176690,1781561437000,-971.63069432,8.005e-05,2]
[425176693,1781561437000,-216.09656886,8.054e-05,2]
[425176698,1781561437000,-500.0,8.219e-05,2]
[425176697,1781561437000,-500.0,8.219e-05,2]
[425176671,1781561437000,-269.12051671,7.558e-05,2]
[425176684,1781561437000,-990.82,7.988e-05,2]
[425176666,1781561437000,-2668.80709856,7.263e-05,2]
[425176699,1781561437000,-500.0,8.219e-05,2]
[425176667,1781561437000,-2668.80709856,7.263e-05,2]
[425176649,1781561437000,-758.05815486,7.263e-05,2]
[425176646,1781561437000,-758.05815486,7.263e-05,2]
[425176642,1781561437000,-758.05815486,7.263e-05,2]
[425176643,1781561437000,-758.05815486,7.263e-05,2]
[425176647,1781561437000,-758.05815486,7.263e-05,2]
[425176644,1781561437000,-758.05815486,7.263e-05,2]
[425176645,1781561437000,-758.05815486,7.263e-05,2]
[425176648,1781561437000,-758.05815486,7.263e-05,2]
[425176650,1781561437000,-758.05815486,7.263e-05,2]
[425176651,1781561437000,-758.05815486,7.263e-05,2]
[425176652,1781561437000,-758.05815486,7.263e-05,2]
[425176656,1781561437000,-2668.80709856,7.263e-05,2]
[425176668,1781561437000,-166.66,7.383e-05,2]
[425176655,1781561437000,-2668.80709856,7.263e-05,2]
[425176659,1781561437000,-2668.80709856,7.263e-05,2]
[425176654,1781561437000,-2668.80709856,7.263e-05,2]
[425176653,1781561437000,-758.05815486,7.263e-05,2]
[425176658,1781561437000,-2668.80709856,7.263e-05,2]
[425176660,1781561437000,-2668.80709856,7.263e-05,2]
[425176661,1781561437000,-2668.80709856,7.263e-05,2]
[425176663,1781561437000,-2668.80709856,7.263e-05,2]
[425176662,1781561437000,-2668.80709856,7.263e-05,2]
[425176670,1781561437000,-250.0,7.528e-05,2]
[425176664,1781561437000,-2668.80709856,7.263e-05,2]
[425176665,1781561437000,-2668.80709856,7.263e-05,2]
[425176669,1781561437000,-250.0,7.41e-05,2]
[425176657,1781561437000,-2668.80709856,7.263e-05,2]
[425176696,1781561437000,-500.0,8.219e-05,2]
[425176689,1781561437000,-704.24887089,8.005e-05,2]
[425176700,1781561437000,-636.27740321,8.219e-05,2]
[425176732,1781561437000,-466.0,8.279e-05,2]
[425176734,1781561437000,-468.48877466,8.279e-05,2]
[425176736,1781561437000,-151.0,8.55e-05,2]
[425176739,1781561437000,-151.33,8.552e-05,2]
[425176737,1781561437000,-151.0,8.55e-05,2]
[425176738,1781561437000,-151.0,8.55e-05,2]
[425176735,1781561437000,-500.0,8.493e-05,2]
[425176740,1781561437000,-151.0,8.553e-05,2]
[425176733,1781561437000,-466.0,8.279e-05,2]
[425176741,1781561437000,-151.0,8.553e-05,2]
[425176742,1781561437000,-267.147153,8.553e-05,2]
[425176743,1781561437000,-151.0,8.553e-05,2]
[425176744,1781561437000,-2000.0,9.247e-05,2]
[425176747,1781561437000,-220.537765,9.567e-05,2]
[425176745,1781561437000,-1600.0,9.428e-05,2]
[425176748,1781561437000,-205.0,9.8e-05,2]
[425176746,1781561437000,-165.14,9.5e-05,2]
[425176749,1781561437000,-500.0,9.949e-05,2]
[425176751,1781561437000,-186.38,9.988e-05,2]
[425176750,1781561437000,-151.86,9.956e-05,2]
[425176753,1781561437000,-202.0,9.989e-05,2]
[425176752,1781561437000,-202.0,9.989e-05,2]
[425176755,1781561437000,-202.0,9.989e-05,2]
[425176754,1781561437000,-202.0,9.989e-05,2]
[425176757,1781561437000,-202.0,9.989e-05,2]
[425176756,1781561437000,-202.0,9.989e-05,2]
[425176704,1781561437000,-450.0,8.219e-05,2]
[425176730,1781561437000,-466.0,8.279e-05,2]
[425176731,1781561437000,-466.0,8.279e-05,2]
[425176694,1781561437000,-230.0,8.099e-05,2]
[425176729,1781561437000,-466.0,8.279e-05,2]
[425176701,1781561437000,-500.0,8.219e-05,2]
[425176703,1781561437000,-500.0,8.219e-05,2]
[425176702,1781561437000,-500.0,8.219e-05,2]
[425176706,1781561437000,-1784.61,8.219e-05,2]
[425176728,1781561437000,-248.14071597,8.279e-05,2]
[425176705,1781561437000,-500.0,8.219e-05,2]
[425176707,1781561437000,-2000.0,8.219e-05,2]
[425176709,1781561437000,-466.0,8.279e-05,2]
[425176710,1781561437000,-466.0,8.279e-05,2]
[425176713,1781561437000,-466.0,8.279e-05,2]
[425176717,1781561437000,-466.0,8.279e-05,2]
[425176711,1781561437000,-466.0,8.279e-05,2]
[425176716,1781561437000,-466.0,8.279e-05,2]
[425176708,1781561437000,-466.0,8.279e-05,2]
[425176714,1781561437000,-466.0,8.279e-05,2]
[425176727,1781561437000,-500.0,8.279e-05,2]
[425176712,1781561437000,-466.0,8.279e-05,2]
[425176723,1781561437000,-466.0,8.279e-05,2]
[425176722,1781561437000,-466.0,8.279e-05,2]
[425176726,1781561437000,-466.0,8.279e-05,2]
[425176725,1781561437000,-500.0,8.279e-05,2]
[425176724,1781561437000,-466.0,8.279e-05,2]
[425176720,1781561437000,-466.0,8.279e-05,2]
[425176718,1781561437000,-466.0,8.279e-05,2]
[425176719,1781561437000,-466.0,8.279e-05,2]
[425176715,1781561437000,-466.0,8.279e-05,2]
[425176721,1781561437000,-466.0,8.279e-05,2]
[425176803,1781561438000,-1600.0,0.00011785,2]
[425176795,1781561438000,-1400.22876965,0.00011387,2]
[425176799,1781561438000,-1784.61,0.00011507,2]
[425176797,1781561438000,-1894.5531,0.00011387,2]
[425176802,1781561438000,-177.01286557,0.00011666,2]
[425176781,1781561438000,-312.2,0.00010989,2]
[425176805,1781561438000,-378.64424954,0.00012035,2]
[425176794,1781561438000,-936.01921743,0.00011387,2]
[425176792,1781561438000,-530.58748576,0.00011387,2]
[425176791,1781561438000,-378.64424954,0.00011318,2]
[425176800,1781561438000,-166.66,0.00011507,2]
[425176804,1781561438000,-601.67,0.00011975,2]
[425176798,1781561438000,-166.66,0.00011397,2]
[425176818,1781561438000,-151.0,0.00012259,2]
[425176806,1781561438000,-14708.02,0.00012055,2]
[425176807,1781561438000,-191.288641,0.00012089,7]
[425176808,1781561438000,-4952.444,0.00012159,2]
[425176809,1781561438000,-151.0,0.00012256,2]
[425176814,1781561438000,-151.0,0.00012259,2]
[425176813,1781561438000,-151.0,0.00012259,2]
[425176811,1781561438000,-151.0,0.00012256,2]
[425176810,1781561438000,-151.0,0.00012256,2]
[425176815,1781561438000,-151.0,0.00012259,2]
[425176817,1781561438000,-151.0,0.00012259,2]
[425176816,1781561438000,-151.0,0.00012259,2]
[425176787,1781561438000,-378.64424954,0.00011099,2]
[425176812,1781561438000,-163.911377,0.00012259,2]
[425176801,1781561438000,-152.0,0.00011585,2]
[425176788,1781561438000,-166.66,0.00011178,2]
[425176773,1781561438000,-1600.0,0.00010607,2]
[425176790,1781561438000,-166.66,0.00011288,2]
[425176759,1781561438000,-1956.8681665,0.0001,2]
[425176762,1781561438000,-163.69,0.0001,2]
[425176758,1781561438000,-202.0,9.989e-05,2]
[425176760,1781561438000,-2771.36130008,0.0001,2]
[425176763,1781561438000,-351.55899,0.0001,2]
[425176764,1781561438000,-351.55899,0.0001,2]
[425176765,1781561438000,-351.55899,0.0001,2]
[425176761,1781561438000,-4420.78866663,0.0001,2]
[425176766,1781561438000,-351.55899,0.0001,2]
[425176768,1781561438000,-351.55899,0.0001,2]
[425176769,1781561438000,-197.06853256,0.00010289,2]
[425176772,1781561438000,-63150.43,0.00010538,2]
[425176771,1781561438000,-831.93,0.00010538,2]
[425176770,1781561438000,-201.05506054,0.00010387,2]
[425176775,1781561438000,-152.0,0.00010788,2]
[425176819,1781561438000,-151.0,0.00012259,2]
[425176774,1781561438000,-1000.0,0.0001063,2]
[425176777,1781561438000,-177.01286557,0.000109,2]
[425176776,1781561438000,-177.0128656,0.000109,2]
[425176778,1781561438000,-150.0,0.00010959,2]
[425176779,1781561438000,-150.0,0.00010959,2]
[425176780,1781561438000,-166.66,0.00010959,2]
[425176783,1781561438000,-166.66,0.00011068,2]
[425176786,1781561438000,-378.64424954,0.00011099,2]
[425176785,1781561438000,-378.64424954,0.00011099,2]
[425176789,1781561438000,-150.0,0.00011233,2]
[425176782,1781561438000,-165.14,0.00011068,2]
[425176784,1781561438000,-378.64424958,0.00011099,2]
[425176820,1781561438000,-151.0,0.00012259,2]
[425176767,1781561438000,-351.559,0.0001,2]
[425176827,1781561438000,-3000.0,0.00012259,2]
[425176855,1781561438000,-172.887738,0.00013426,2]
[425176857,1781561438000,-160.0,0.00013492,2]
[425176858,1781561438000,-383.992831,0.00013492,2]
[425176859,1781561438000,-607.985663,0.00013492,2]
[425176864,1781561438000,-350.0,0.00013663,2]
[425176865,1781561438000,-500.0,0.00013698,2]
[425176861,1781561438000,-183.310306,0.00013582,2]
[425176862,1781561438000,-152.0,0.00013582,2]
[425176863,1781561438000,-152.0,0.00013582,2]
[425176866,1781561438000,-500.0,0.00013698,2]
[425176860,1781561438000,-179.792064,0.00013559,2]
[425176867,1781561438000,-151.0,0.00013699,2]
[425176868,1781561438000,-200.0,0.00013699,2]
[425176875,1781561438000,-1000.0,0.000138,2]
[425176870,1781561438000,-1676.65,0.000137,2]
[425176872,1781561438000,-1339.0,0.00013746,5]
[425176871,1781561438000,-350.0,0.00013729,2]
[425176876,1781561438000,-316.0,0.000138,2]
[425176877,1781561438000,-152.0,0.00013817,2]
[425176873,1781561438000,-350.0,0.00013746,2]
[425176874,1781561438000,-350.0,0.00013789,2]
[425176869,1781561438000,-342.663873,0.000137,2]
[425176878,1781561438000,-152.0,0.0001383,2]
[425176880,1781561438000,-152.0,0.0001383,2]
[425176879,1781561438000,-152.0,0.0001383,2]
[425176881,1781561438000,-152.0,0.0001383,2]
[425176823,1781561438000,-151.0,0.00012259,2]
[425176854,1781561438000,-166.443869,0.00013426,2]
[425176851,1781561438000,-108.50939796,0.00013425,2]
[425176856,1781561438000,-378.64424954,0.00013467,2]
[425176847,1781561438000,-177.01286557,0.00013273,2]
[425176822,1781561438000,-151.0,0.00012259,2]
[425176825,1781561438000,-151.0,0.00012259,2]
[425176826,1781561438000,-151.0,0.00012259,2]
[425176821,1781561438000,-151.0,0.00012259,2]
[425176824,1781561438000,-151.0,0.00012259,2]
[425176829,1781561438000,-8317.32839512,0.000123,2]
[425176830,1781561438000,-377.54,0.00012329,2]
[425176828,1781561438000,-350.0,0.00012259,2]
[425176831,1781561438000,-312.0909483,0.000125,2]
[425176852,1781561438000,-322.84311704,0.00013425,2]
[425176832,1781561438000,-350.0,0.00012543,2]
[425176833,1781561438000,-151.0,0.00012577,2]
[425176835,1781561438000,-350.0,0.00012674,2]
[425176836,1781561438000,-378.64424954,0.00012751,2]
[425176834,1781561438000,-350.0,0.00012602,2]
[425176838,1781561438000,-6589.11625554,0.00012893,2]
[425176844,1781561438000,-350.0,0.00013184,2]
[425176837,1781561438000,-350.0,0.00012861,2]
[425176848,1781561438000,-160.391365,0.00013425,2]
[425176853,1781561438000,-160.0,0.00013426,2]
[425176850,1781561438000,-295.676257,0.00013425,2]
[425176846,1781561438000,-151.0,0.0001319,2]
[425176849,1781561438000,-160.0,0.00013425,2]
[425176843,1781561438000,-198.427076,0.00013006,7]
[425176842,1781561438000,-350.0,0.00013002,2]
[425176841,1781561438000,-1164.55691605,0.00013,2]
[425176840,1781561438000,-1600.0,0.00012964,2]
[425176839,1781561438000,-9654.82374446,0.00012893,2]
[425176845,1781561438000,-152.0,0.0001319,2]
[425176890,1781561439000,-171.36887541,0.0001383,2]
[425176887,1781561439000,-151.0,0.0001383,2]
[425176886,1781561439000,-175.26401103,0.0001383,2]
[425176889,1781561439000,-151.0,0.0001383,2]
[425176883,1781561439000,-152.0,0.0001383,2]
[425176885,1781561439000,-152.0,0.0001383,2]
[425176884,1781561439000,-152.0,0.0001383,2]
[425176882,1781561439000,-152.0,0.0001383,2]
[425176891,1781561439000,-151.0,0.0001383,2]
[425176888,1781561439000,-151.0,0.0001383,2]
[425176893,1781561439000,-151.87586857,0.0001383,2]
[425176892,1781561439000,-151.0,0.0001383,2]
[425176895,1781561439000,-151.0,0.00013896,2]
[425176904,1781561439000,-215.62169233,0.00014003,2]
[425176903,1781561439000,-2000.0,0.00014,2]
[425176901,1781561439000,-6078.0,0.00013968,2]
[425176900,1781561439000,-1075.0,0.00013968,2]
[425176902,1781561439000,-250.0,0.00014,2]
[425176898,1781561439000,-1558.95279826,0.00013933,2]
[425176899,1781561439000,-1275.0,0.00013968,2]
[425176896,1781561439000,-1367.636,0.00013928,2]
[425176897,1781561439000,-383.0,0.00013928,2]
[425176894,1781561439000,-1500.0,0.00013894,2]
[425176905,1781561440000,-160.0,8.188e-05,2]
[425176906,1781561440000,-320.88685196,0.00013968,2]
[425176918,1781561441000,-515.27083545,0.00013968,2]
[425176917,1781561441000,-1279.811163,0.00013968,2]
[425176916,1781561441000,-182.28,0.00013454,2]
[425177048,1781561446000,-1555.5,0.00014442,2]
[425177045,1781561446000,-523.626589,0.00014166,2]
[425177053,1781561446000,-175.0,0.00014713,2]
[425177046,1781561446000,-378.64424954,0.00014184,2]
[425177047,1781561446000,-166.501,0.00014405,2]
[425177050,1781561446000,-151.0,0.0001463,2]
[425177051,1781561446000,-9191.91228448,0.000147,2]
[425177054,1781561446000,-220.0,0.00014713,2]
[425177044,1781561446000,-1600.0,0.00014142,2]
[425177040,1781561446000,-318.17456682,0.00014111,2]
[425177042,1781561446000,-4704.53,0.00013905,2]
[425177041,1781561446000,-1000.0,0.00014111,2]
[425177039,1781561446000,-226.968912,0.00014097,2]
[425177038,1781561446000,-403.194896,0.00014096,2]
[425177035,1781561446000,-1046.88928713,0.00013968,2]
[425177052,1781561446000,-200.0,0.00014713,2]
[425177033,1781561446000,-150.0,0.00011191,2]
[425177036,1781561446000,-285.0733299,0.00013968,2]
[425177034,1781561446000,-197.06853256,0.00013968,2]
[425177043,1781561446000,-3682.25464279,0.00014111,2]
[425177037,1781561446000,-134.37830767,0.00014003,2]
[425177049,1781561446000,-419.0,0.00014613,2]
[425177066,1781561446000,-166.66666666,0.000149,2]
[425177074,1781561446000,-485.0,0.00014937,2]
[425177073,1781561446000,-426.0,0.00014931,2]
[425177075,1781561446000,-707.37855037,0.0001497,2]
[425177071,1781561446000,-12408.97265545,0.000149,2]
[425177070,1781561446000,-378.64424954,0.000149,2]
[425177076,1781561446000,-1000.0,0.0001497,2]
[425177068,1781561446000,-190.69682369,0.000149,2]
[425177069,1781561446000,-905.907,0.000149,2]
[425177067,1781561446000,-166.66666666,0.000149,2]
[425177072,1781561446000,-166.66666666,0.000149,2]
[425177063,1781561446000,-166.6666667,0.00014899,2]
[425177064,1781561446000,-166.66666666,0.00014899,2]
[425177065,1781561446000,-166.66666666,0.00014899,2]
[425177057,1781561446000,-190.0,0.00014713,2]
[425177056,1781561446000,-248.336,0.00014713,2]
[425177055,1781561446000,-150.0,0.00014713,2]
[425177059,1781561446000,-250.0,0.0001485,2]
[425177062,1781561446000,-177.01286557,0.0001488,2]
[425177061,1781561446000,-426.0,0.00014875,2]
[425177060,1781561446000,-569.01970294,0.00014865,2]
[425177058,1781561446000,-3558.0,0.00014713,2]
[425177078,1781561447000,-500.0,0.0001497,2]
[425177077,1781561447000,-1000.0,0.0001497,2]
[425177079,1781561447000,-1613.0535,0.0001499,2]
[425177084,1781561447000,-2273.65142171,0.00014999,2]
[425177080,1781561447000,-176.43835515,0.0001499,2]
[425177083,1781561447000,-27620.62617067,0.00014999,2]
[425177081,1781561447000,-485.0,0.00014993,2]
[425177082,1781561447000,-151.0,0.00014997,2]
[425177098,1781561488000,-300.0,9.571e-05,2]
[425177099,1781561541000,-150.0,8.77e-05,2]
[425177100,1781561557000,670.70532607,0.0003011,120]
[425177101,1781561594000,-188.331021,7.253e-05,2]
[425177102,1781561618000,634.48723846,0.0003011,120]
[425177103,1781561648000,-500.0,7.262e-05,2]
[425177104,1781561677000,600.22492759,0.0003011,120]
[425177105,1781561702000,-515.27083545,7.262e-05,2]
[425177106,1781561723000,-300.0,7.261e-05,2]
[425177107,1781561733000,188.77,0.00030082,120]
[425177108,1781561737000,567.8127815,0.0003011,120]
[425177109,1781561776000,-150.0,7.261e-05,2]
[425177110,1781561797000,349.43021662,0.0003011,120]
[425177111,1781561830000,-500.0,7.26e-05,2]
[425177112,1781561857000,192.18661914,0.0003011,120]
[425177113,1781561883000,-400.13519595,7.26e-05,2]
[425177114,1781561898000,150.0,7.042e-05,2]
[425177115,1781561953000,-150.0,7.259e-05,2]
[425177117,1781561961000,144.53712079,7.253e-05,2]
[425177116,1781561961000,350.0,7.253e-05,2]
[425177118,1781561991000,1072.0,0.00010658,5]
[425177120,1781561999000,173.52887438,7.259e-05,2]
[425177119,1781561999000,103.6165002,7.259e-05,2]
[425177121,1781562037000,189.22637583,0.0003011,120]
[425177123,1781562039000,165.89912531,7.258e-05,2]
[425177122,1781562039000,54.91288931,7.258e-05,2]
[425177124,1781562039000,82.25449568,7.258e-05,2]
[425177127,1781562039000,225.09795197,7.258e-05,2]
[425177126,1781562039000,274.89597306,7.258e-05,2]
[425177125,1781562039000,174.35427853,7.258e-05,2]
[425177128,1781562039000,274.90204803,7.258e-05,2]
[425177129,1781562040000,225.09795197,7.258e-05,2]
[425177131,1781562040000,118.99024723,7.258e-05,2]
[425177130,1781562040000,166.66,7.258e-05,2]
[425177133,1781562040000,187.84744593,7.258e-05,2]
[425177132,1781562040000,193.16230684,7.258e-05,2]
[425177134,1781562040000,118.99024723,7.258e-05,2]
[425177135,1781562040000,249.1646531,7.258e-05,2]
[425177136,1781562040000,250.8353469,7.258e-05,2]
[425177137,1781562040000,133.63991015,7.258e-05,2]
[425177139,1781562040000,133.63991015,7.258e-05,2]
[425177138,1781562040000,366.36008985,7.258e-05,2]
[425177141,1781562040000,135.21124516,7.258e-05,2]
[425177140,1781562040000,151.0,7.258e-05,2]
[425177149,1781562040000,53.45462312,7.258e-05,2]
[425177150,1781562040000,166.66,7.258e-05,2]
[425177147,1781562040000,203.45462312,7.258e-05,2]
[425177148,1781562040000,296.54537688,7.258e-05,2]
[425177151,1781562040000,157.47,7.258e-05,2]
[425177146,1781562040000,79.53541216,7.258e-05,2]
[425177143,1781562040000,269.41287568,7.258e-05,2]
[425177144,1781562040000,79.53541216,7.258e-05,2]
[425177142,1781562040000,151.05171216,7.258e-05,2]
[425177145,1781562040000,420.46458784,7.258e-05,2]
[425177160,1781562041000,371.98827884,7.258e-05,2]
[425177153,1781562041000,146.40922041,7.258e-05,2]
[425177154,1781562041000,175.87,7.258e-05,2]
[425177152,1781562041000,122.41537688,7.258e-05,2]
[425177155,1781562041000,153.0,7.258e-05,2]
[425177156,1781562041000,24.72077959,7.258e-05,2]
[425177157,1781562041000,253.01869441,7.258e-05,2]
[425177158,1781562041000,169.36118349,7.258e-05,2]
[425177159,1781562041000,77.6201221,7.258e-05,2]
[425177162,1781562041000,500.0,7.258e-05,2]
[425177165,1781562041000,157.47,7.258e-05,2]
[425177164,1781562041000,166.66,7.258e-05,2]
[425177163,1781562041000,44.87011462,7.258e-05,2]
[425177166,1781562041000,130.99988538,7.258e-05,2]
[425177167,1781562041000,57.57187538,7.258e-05,2]
[425177168,1781562041000,153.0,7.258e-05,2]
[425177170,1781562041000,44.92586721,7.258e-05,2]
[425177169,1781562041000,244.50225741,7.258e-05,2]
[425177171,1781562041000,219.68573271,7.258e-05,2]
[425177161,1781562041000,128.01172116,7.258e-05,2]
[425177172,1781562041000,156.42711952,7.258e-05,2]
[425177173,1781562144000,-250.0,7.26e-05,2]
[425177174,1781562197000,-150.0,7.263e-05,2]
[425177175,1781562250000,-250.0,7.267e-05,2]
[425177176,1781562252000,1000.0,0.0003,120]
[425177177,1781562265000,800.0,0.0003,120]
[425177178,1781562304000,-160.0,7.286e-05,2]
[425177179,1781562315000,850.0,0.0003,120]
[425177180,1781562358000,-150.0,7.352e-05,2]
[425177184,1781562390000,-25.77886288,7.643e-05,2]